bitfinex/quotes_SOLUSD_20220226
["timestamp","ask_amount","ask_price","bid_price","bid_amount"]
[1645885003186,4.41,90.752,90.652,2.8631824]
[1645885003384,1.84484845,90.768,90.652,2.8631824]
[1645885003983,50.38951913,90.759,90.662,110.0]
[1645885004184,1.51859227,90.758,90.67,125.85]
[1645885004385,48.74722346,90.759,90.671,2.78939006]
[1645885004787,1.84576691,90.758,90.67,125.85]
[1645885004985,1.84576691,90.758,90.67,15.85]
[1645885005189,1.84576691,90.758,90.67,125.85]
[1645885005485,1.84576691,90.758,90.67,142.3936]
[1645885005486,4.409,90.757,90.67,142.3936]
[1645885005885,48.74722346,90.759,90.671,2.84626834]
[1645885006084,48.74722346,90.759,90.673,2.51836822]
[1645885006284,48.74722346,90.759,90.672,110.0]
[1645885006485,48.74722346,90.759,90.673,2.80025242]
[1645885006684,48.74722346,90.759,90.691,28.71203845]
[1645885010090,2.74678921,90.771,90.692,110.0]
[1645885010292,4.408,90.776,90.693,2.96656948]
[1645885010491,22.63236175,90.807,90.693,2.96656948]
[1645885010688,6.0778163,90.806,90.695,3.063942]
[1645885011088,1.35659642,90.804,90.695,3.063942]
[1645885011292,4.407,90.803,90.695,3.063942]
[1645885011489,16.5369,90.8,90.701,110.0]
[1645885011690,16.5369,90.8,90.711,52.83757977]
[1645885011891,4.407,90.799,90.712,110.0]
[1645885012494,6.15344684,90.799,90.712,110.0]
[1645885012693,4.407,90.799,90.72,126.5344]
[1645885012895,44.73273061,90.805,90.72,126.5344]
[1645885013495,44.73273061,90.805,90.72,142.3844]
[1645885013692,39.73273061,90.805,90.72,142.3844]
[1645885014093,39.73273061,90.805,90.741,110.0]
[1645885014293,1.77996201,90.827,90.741,110.0]
[1645885014692,1.77996201,90.827,90.741,117.93]
[1645885015094,1.77996201,90.827,90.742,4.406]
[1645885015296,44.49908863,90.826,90.743,33.71203845]
[1645885015494,1.7666643,90.825,90.743,33.71203845]
[1645885015897,4.406,90.831,90.75,16.529]
[1645885016099,2.74678921,90.858,90.761,110.0]
[1645885016295,6.22540032,90.879,90.762,4.404]
[1645885016495,6.22540032,90.879,90.764,110.0]
[1645885016496,4.404,90.879,90.764,110.0]
[1645885016695,6.23660126,90.894,90.765,4.404]
[1645885016895,1.81291245,90.892,90.771,110.0]
[1645885017096,4.402,90.891,90.772,4.402]
[1645885017299,16.5193,90.89,90.782,33.71203845]
[1645885017597,1.54280625,90.889,90.79,110.0]
[1645885017798,1.54280625,90.889,90.791,4.402]
[1645885018001,4.402,90.888,90.79,15.85]
[1645885018197,4.402,90.888,90.79,125.85]
[1645885018399,4.28959546,90.889,90.8,126.5196]
[1645885018600,4.402,90.888,90.802,110.0]
[1645885018797,1.54280625,90.889,90.801,52.83757977]
[1645885018998,1.54280625,90.889,90.802,4.402]
[1645885019199,1.54280625,90.889,90.802,110.0]
[1645885019597,1.54280625,90.889,90.803,4.402]
[1645885020599,1.54280625,90.889,90.81,16.5172]
[1645885020799,1.54280625,90.889,90.81,15.85]
[1645885020800,2.74678921,90.888,90.81,15.85]
[1645885021000,70.10367173,90.888,90.79,15.85]
[1645885021202,70.10367173,90.888,90.756,16.1978]
[1645885021203,65.9,90.883,90.77,15.85]
[1645885021399,6.20528092,90.882,90.77,15.85]
[1645885021599,32.00671522,90.882,90.77,15.85]
[1645885021800,1.79852987,90.881,90.77,125.85]
[1645885021999,16.23537221,90.879,90.771,54.46812207]
[1645885022299,43.56500957,90.859,90.772,4.404]
[1645885022500,43.56500957,90.859,90.771,54.46812207]
[1645885022700,1.54464364,90.858,90.771,54.46812207]
[1645885023101,3.46590997,90.858,90.771,54.46812207]
[1645885023602,4.404,90.857,90.771,54.46812207]
[1645885024301,1.54464364,90.858,90.78,126.524]
[1645885024502,43.56500957,90.859,90.78,142.374]
[1645885025703,43.56500957,90.859,90.781,4.404]
[1645885025904,43.56500957,90.859,90.791,32.08149615]
[1645885026103,43.56500957,90.859,90.792,110.0]
[1645885026309,1.56095739,90.883,90.792,110.0]
[1645885027303,52.15093818,90.882,90.792,110.0]
[1645885027503,52.15093818,90.882,90.801,110.0]
[1645885027706,52.15093818,90.882,90.81,125.85]
[1645885027904,52.15093818,90.882,90.812,110.0]
[1645885028707,4.58143154,90.9,90.82,126.516]
[1645885028908,2.74678921,90.9,90.82,142.366]
[1645885029106,2.74678921,90.899,90.82,142.366]
[1645885029307,78.9236,90.918,90.821,4.402]
[1645885029507,24.3878,90.919,90.821,4.402]
[1645885029710,57.90786655,90.918,90.821,4.402]
[1645885029908,57.90786655,90.918,90.822,110.0]
[1645885030108,57.90786655,90.918,90.853,110.0]
[1645885030407,1.44390882,90.917,90.852,32.08149615]
[1645885030807,1.92126633,90.916,90.852,32.08149615]
[1645885031208,23.05464509,90.915,90.852,32.08149615]
[1645885031413,6.15546536,90.914,90.83,15.85]
[1645885031906,1.60852318,90.913,90.83,15.85]
[1645885032307,1.60852318,90.913,90.831,49.10191117]
[1645885032507,16.5157,90.91,90.831,49.10191117]
[1645885032709,1.74793161,90.909,90.831,48.60191117]
[1645885032908,65.9,90.908,90.8,15.85]
[1645885033107,4.402,90.907,90.801,4.402]
[1645885033307,6.14628314,90.907,90.8,15.85]
[1645885033510,31.12219456,90.907,90.8,15.85]
[1645885033711,4.49976663,90.906,90.801,4.402]
[1645885033911,1.36034488,90.905,90.801,51.96587195]
[1645885034113,2.39251523,90.904,90.802,110.0]
[1645885034310,6.75235664,90.904,90.803,4.402]
[1645885034511,5.13930444,90.904,90.803,4.402]
[1645885034711,2.74678921,90.903,90.803,4.402]
[1645885034913,2.39251523,90.904,90.804,110.0]
[1645885035111,2.39251523,90.904,90.808,110.0]
[1645885035311,2.39251523,90.904,90.821,110.0]
[1645885035609,70.302,90.966,90.85,16.5107]
[1645885035610,1.83939668,90.936,90.85,16.5107]
[1645885036016,23.05464509,90.936,90.85,16.5107]
[1645885036413,54.29528076,90.936,90.851,38.48574627]
[1645885036610,54.29528076,90.936,90.852,110.0]
[1645885036812,1.63484111,90.947,90.86,126.5083]
[1645885037013,1.46338969,90.969,90.871,110.0]
[1645885037216,1.84730542,90.977,90.872,4.399]
[1645885037412,1.84730542,90.977,90.873,110.0]
[1645885037612,1.84730542,90.977,90.874,4.399]
[1645885037814,52.75577921,90.976,90.881,110.0]
[1645885038012,1.58895283,90.975,90.882,4.399]
[1645885038213,1.58895283,90.975,90.891,110.0]
[1645885038433,52.75577921,90.976,90.893,110.0]
[1645885038835,52.75577921,90.976,90.893,114.398]
[1645885039435,52.75577921,90.976,90.901,110.0]
[1645885039636,1.72239316,90.998,90.901,110.0]
[1645885039838,1.72239316,90.998,90.901,117.46]
[1645885040637,44.75858241,91.01,90.901,117.46]
[1645885040840,44.75858241,91.01,90.913,110.0]
[1645885041039,51.6804,91.039,90.921,110.0]
[1645885041237,1.61663054,91.038,90.921,116.52]
[1645885041437,4.396,91.037,90.921,116.52]
[1645885042037,57.03255712,91.036,90.921,116.52]
[1645885042238,5.93066048,91.035,90.921,116.52]
[1645885042438,5.93066048,91.035,90.941,110.0]
[1645885042640,5.93066048,91.035,90.943,110.0]
[1645885042837,4.396,91.035,90.943,117.9]
[1645885043039,1.59282925,91.035,90.943,117.9]
[1645885043238,57.03255712,91.036,90.943,117.9]
[1645885044143,57.03255712,91.036,90.951,110.0]
[1645885044339,57.03255712,91.036,90.963,110.0]
[1645885044539,57.03255712,91.036,90.963,116.92]
[1645885045543,1.68718125,91.038,90.963,116.92]
[1645885045743,39.7348,91.107,90.963,116.92]
[1645885045744,5.80507157,91.058,90.963,116.92]
[1645885045942,1.41107157,91.058,90.963,116.92]
[1645885046343,47.9503,91.078,90.963,110.0]
[1645885046344,4.394,91.077,90.963,110.0]
[1645885046543,47.13032364,91.046,90.963,110.0]
[1645885046944,1.72178424,91.045,90.96,13.22]
[1645885047146,65.9,91.043,90.893,4.398]
[1645885047345,116.25624531,91.044,90.903,47.5218]
[1645885047346,65.9,91.035,90.903,47.5218]
[1645885047544,55.0054,91.01,90.903,47.5218]
[1645885047745,1.77728947,91.009,90.903,47.5218]
[1645885047946,13.17005814,91.008,90.905,53.72462671]
[1645885048148,1.7041835,91.007,90.923,110.0]
[1645885049351,1.7041835,91.007,90.922,32.32499151]
[1645885050749,16.4994,91.0,90.922,32.32499151]
[1645885050948,1.59735878,90.999,90.922,32.32499151]
[1645885051153,67.49735878,90.999,90.893,4.398]
[1645885051349,110.0,90.987,90.848,16.4032]
[1645885051550,67.3170946,90.983,90.849,110.0]
[1645885051748,1.56567902,90.982,90.849,110.0]
[1645885051953,4.399,90.981,90.849,110.0]
[1645885052150,1.54452836,90.979,90.851,110.0]
[1645885052550,1.54452836,90.979,90.852,2.50460332]
[1645885052750,4.399,90.978,90.853,110.0]
[1645885053049,4.399,90.978,90.855,110.0]
[1645885053450,16.5056,90.97,90.861,110.0]
[1645885053651,1.86721344,90.969,90.861,110.0]
[1645885054553,1.86721344,90.969,90.87,126.5056]
[1645885054750,1.86721344,90.969,90.872,110.0]
[1645885058051,13.17005814,90.959,90.871,28.09086663]
[1645885058453,1.71751129,90.958,90.871,28.09086663]
[1645885059252,16.5086,90.95,90.871,28.09086663]
[1645885059452,1.68489044,90.949,90.871,28.09086663]
[1645885059655,3.60615677,90.949,90.871,28.09086663]
[1645885059853,2.74678921,90.948,90.871,28.09086663]
[1645885060454,46.48782759,90.939,90.84,29.731]
[1645885060654,1.45664404,90.938,90.84,29.731]
[1645885061256,1.45664404,90.938,90.84,139.731]
[1645885061460,1.45664404,90.938,90.841,49.60037564]
[1645885062261,1.45664404,90.938,90.842,110.0]
[1645885062458,1.45664404,90.938,90.851,110.0]
[1645885062657,45.00398351,90.939,90.851,115.84]
[1645885063258,1.74705165,90.938,90.851,115.84]
[1645885063457,45.00398351,90.939,90.851,115.84]
[1645885064260,45.00398351,90.939,90.851,126.7962]
[1645885064462,1.78986094,90.938,90.851,110.0]
[1645885068390,45.00398351,90.939,90.861,110.0]
[1645885068589,45.00398351,90.939,90.863,110.0]
[1645885069392,46.4353,90.954,90.863,110.0]
[1645885070094,1.72644628,90.953,90.863,110.0]
[1645885070292,46.4353,90.954,90.863,110.0]
[1645885070494,58.85674733,90.952,90.871,110.0]
[1645885070693,4.399,90.974,90.881,110.0]
[1645885070896,1.51848592,90.986,90.881,110.0]
[1645885071594,1.83174063,90.984,90.884,110.0]
[1645885072395,1.83174063,90.984,90.883,48.1016794]
[1645885072599,1.3506331,90.979,90.89,16.5007]
[1645885072796,1.3506331,90.979,90.883,48.1016794]
[1645885073196,1.3506331,90.979,90.884,110.0]
[1645885073700,1.3506331,90.979,90.883,48.1016794]
[1645885073901,1.92126633,90.978,90.883,48.1016794]
[1645885074505,15.22837431,90.969,90.883,48.1016794]
[1645885074711,1.73028742,90.968,90.883,48.1016794]
[1645885077016,1.73028742,90.968,90.884,110.0]
[1645885077608,13.48163713,90.969,90.884,110.0]
[1645885078810,1.75330016,90.987,90.891,110.0]
[1645885079107,1.75330016,90.987,90.891,117.62]
[1645885079808,49.71375757,90.999,90.893,110.0]
[1645885080010,0.91,91.07,90.892,9.92462337]
[1645885080011,1.65049998,91.008,90.895,110.0]
[1645885080218,2.74678921,91.017,90.901,110.0]
[1645885080409,2.74678921,91.017,90.911,110.0]
[1645885080607,2.74678921,91.017,90.913,110.0]
[1645885081006,46.88283612,91.016,90.914,37.94793882]
[1645885081205,1.81820862,91.015,90.915,133.5871]
[1645885081406,4.56499783,91.015,90.921,110.0]
[1645885081605,1.81820862,91.015,90.933,110.0]
[1645885081806,1.75393598,91.026,90.933,122.706]
[1645885082206,1.75393598,91.026,90.934,4.396]
[1645885082606,1.75393598,91.026,90.935,110.0]
[1645885082810,1.75393598,91.026,90.953,110.0]
[1645885083007,1.75393598,91.026,90.96,13.22]
[1645885083309,1.75393598,91.026,90.954,4.396]
[1645885083310,11.44291411,91.026,90.954,4.396]
[1645885083508,11.44291411,91.026,90.952,37.94793882]
[1645885084208,11.61024446,91.026,90.952,37.94793882]
[1645885084408,1.4314991,91.025,90.952,37.94793882]
[1645885084609,16.4957,91.02,90.952,37.94793882]
[1645885084808,1.83586659,91.019,90.952,37.94793882]
[1645885085009,3.75713292,91.019,90.952,37.94793882]
[1645885085409,2.74678921,91.018,90.952,37.94793882]
[1645885085609,16.4975,91.01,90.952,37.94793882]
[1645885085811,52.13120886,91.009,90.952,37.94793882]
[1645885086010,1.76322116,91.008,90.952,37.94793882]
[1645885086211,4.51001037,91.008,90.92,13.22]
[1645885086410,2.74678921,91.007,90.92,13.22]
[1645885087213,2.74678921,91.007,90.921,48.44037519]
[1645885088614,2.74678921,91.007,90.922,110.0]
[1645885088814,74.35610365,91.009,90.931,110.0]
[1645885089015,74.35610365,91.009,90.941,37.60924303]
[1645885089215,74.35610365,91.009,90.941,43.52924303]
[1645885090017,23.7447,91.009,90.942,110.0]
[1645885090417,1.578005,91.026,90.942,110.0]
[1645885090619,2.74678921,91.04,90.942,110.0]
[1645885090938,53.40630502,91.066,90.944,112.43511969]
[1645885091138,65.9,91.064,90.943,48.5303]
[1645885091338,5.85867917,91.065,90.943,48.5303]
[1645885091339,20.99515683,91.039,90.943,48.5303]
[1645885091537,1.01133908,91.038,90.941,37.60924303]
[1645885091738,2.93260541,91.038,90.941,37.60924303]
[1645885091936,2.74678921,91.037,90.941,37.60924303]
[1645885092137,46.848,91.036,90.941,37.60924303]
[1645885092341,16.4942,91.03,90.941,37.60924303]
[1645885092541,52.99676562,91.029,90.941,37.60924303]
[1645885092839,1.64754598,91.028,90.941,37.60924303]
[1645885093641,3.56881231,91.028,90.941,37.60924303]
[1645885094042,16.4959,91.02,90.941,37.60924303]
[1645885094242,1.82356934,91.019,90.941,37.60924303]
[1645885096147,1.92126633,91.028,90.942,110.0]
[1645885096344,51.63401031,91.029,90.942,115.34]
[1645885096946,51.13401031,91.029,90.95,16.4906]
[1645885097146,51.13401031,91.029,90.95,29.7106]
[1645885097548,1.50910196,91.028,90.95,29.7106]
[1645885097747,1.50910196,91.028,90.951,110.0]
[1645885097946,51.13401031,91.029,90.951,110.0]
[1645885100948,51.13401031,91.029,90.95,16.4906]
[1645885101152,51.13401031,91.029,90.95,32.3406]
[1645885102150,50.63401031,91.029,90.95,15.85]
[1645885102350,4.60184266,91.028,90.95,15.85]
[1645885102553,29.99299949,91.028,90.941,37.60924303]
[1645885102752,3.77882933,91.027,90.941,37.60924303]
[1645885103153,2.74678921,91.026,90.941,37.60924303]
[1645885103352,4.43232101,91.026,90.941,37.60924303]
[1645885103554,16.496,91.02,90.941,37.60924303]
[1645885103759,1.42405911,91.019,90.916,22.7195]
[1645885103957,4.397,91.018,90.916,22.7195]
[1645885104155,65.9,91.017,90.916,22.7195]
[1645885104455,1.51321265,91.014,90.916,22.7195]
[1645885104656,76.28235223,90.999,90.891,58.30854446]
[1645885104858,1.43693922,90.998,90.891,58.30854446]
[1645885105056,4.398,90.997,90.891,58.30854446]
[1645885105256,8.76078039,90.997,90.891,58.30854446]
[1645885105456,51.75428921,90.996,90.891,58.30854446]
[1645885105656,5.89642119,90.995,90.891,58.30854446]
[1645885105856,52.46563095,90.969,90.891,58.30854446]
[1645885106057,1.76295916,90.968,90.891,58.30854446]
[1645885107559,16.5069,90.96,90.87,23.5532]
[1645885107760,1.38483419,90.959,90.87,23.5532]
[1645885107958,4.1316234,90.959,90.87,23.5532]
[1645885108160,2.74678921,90.959,90.87,23.5532]
[1645885108359,65.9,90.957,90.851,22.7414]
[1645885108559,1.71202262,90.956,90.852,45.26114966]
[1645885108763,65.9,90.953,90.852,45.26114966]
[1645885108958,5.79250678,90.952,90.852,45.26114966]
[1645885109160,1.75628866,90.95,90.852,45.26114966]
[1645885109459,2.74678921,90.949,90.852,45.26114966]
[1645885109660,4.19335851,90.949,90.852,45.26114966]
[1645885109859,4.4,90.948,90.852,45.26114966]
[1645885110058,65.9,90.947,90.852,45.26114966]
[1645885110258,6.21767316,90.946,90.852,45.26114966]
[1645885110561,16.5138,90.92,90.831,23.1116]
[1645885110760,65.9,90.909,90.8,16.5714]
[1645885110961,1.86398134,90.908,90.8,16.5714]
[1645885111160,5.78178913,90.918,90.8,16.5714]
[1645885111364,5.78178913,90.918,90.8,32.4214]
[1645885111562,52.83143982,90.917,90.802,110.0]
[1645885111762,6.14769972,90.916,90.802,110.0]
[1645885111962,8.89448893,90.916,90.802,110.0]
[1645885112163,2.74678921,90.915,90.802,110.0]
[1645885112364,4.402,90.914,90.804,110.0]
[1645885112562,2.74678921,90.915,90.804,110.0]
[1645885113062,1.74569972,90.916,90.805,5.4085433]
[1645885113264,1.74569972,90.916,90.821,143.09381097]
[1645885113474,1.74569972,90.916,90.821,149.80381097]
[1645885114565,1.74569972,90.916,90.831,110.0]
[1645885114865,1.74569972,90.916,90.83,15.85]
[1645885115666,1.24569972,90.916,90.83,15.85]
[1645885116472,16.516,90.91,90.822,22.9144]
[1645885116669,7.14778921,90.915,90.822,22.9144]
[1645885116670,6.05793867,90.909,90.822,22.9144]
[1645885116870,6.32326633,90.909,90.822,22.9144]
[1645885117070,2.74678921,90.908,90.821,33.09381097]
[1645885117300,4.402,90.907,90.821,33.09381097]
[1645885117693,2.74678921,90.906,90.821,33.09381097]
[1645885118194,1.56809403,90.914,90.821,33.09381097]
[1645885118395,1.56809403,90.914,90.822,22.5224]
[1645885118595,2.74678921,90.913,90.822,22.5224]
[1645885120496,16.5173,90.91,90.822,22.5224]
[1645885120795,1.81019528,90.909,90.822,22.5224]
[1645885121196,2.74678921,90.913,90.822,22.5224]
[1645885121698,50.08465061,90.917,90.824,2.98422784]
[1645885122097,49.58465061,90.917,90.824,2.98422784]
[1645885123299,49.58465061,90.917,90.831,110.0]
[1645885123499,49.58465061,90.917,90.83,16.513]
[1645885123500,2.74678921,90.951,90.841,110.0]
[1645885123701,2.74678921,90.951,90.844,2.8134429]
[1645885123900,2.74678921,90.951,90.846,2.49459639]
[1645885124100,2.74678921,90.951,90.852,2.37709441]
[1645885124502,52.02269953,90.938,90.854,110.0]
[1645885124801,52.02269953,90.938,90.855,2.7953649]
[1645885125000,52.02269953,90.938,90.86,15.85]
[1645885126402,2.74678921,90.951,90.861,112.39932145]
[1645885126602,46.5886,90.958,90.862,2.3317012]
[1645885127003,46.5886,90.958,90.862,5.07849041]
[1645885127200,46.5886,90.958,90.863,2.74678921]
[1645885127401,42.88474419,90.957,90.863,2.74678921]
[1645885127600,42.88474419,90.957,90.873,110.0]
[1645885127801,42.88474419,90.957,90.88,15.85]
[1645885128002,1.7137744,90.956,90.88,15.85]
[1645885129004,42.88474419,90.957,90.882,2.37200731]
[1645885129409,1.72932913,90.986,90.882,2.37200731]
[1645885129606,1.72932913,90.986,90.884,110.0]
[1645885129806,1.72932913,90.986,90.885,2.71484384]
[1645885130305,56.68870958,90.985,90.886,45.40849314]
[1645885130506,16.5045,90.98,90.89,16.502]
[1645885131607,1.86773602,90.979,90.89,16.502]
[1645885131807,1.86773602,90.979,90.886,45.40849314]
[1645885132010,2.74678921,90.978,90.886,45.40849314]
[1645885133510,1.86773602,90.979,90.887,110.0]
[1645885133710,56.68870958,90.985,90.891,110.0]
[1645885133909,56.68870958,90.985,90.892,2.70072365]
[1645885134108,56.68870958,90.985,90.892,5.44751286]
[1645885134309,24.6373,91.007,90.893,2.74678921]
[1645885134512,51.7001,91.045,90.911,110.0]
[1645885134709,2.74678921,91.034,90.921,110.0]
[1645885134909,2.74678921,91.034,90.923,110.0]
[1645885135117,2.74678921,91.034,90.924,2.85859768]
[1645885135418,1.52363366,91.042,90.927,2.47174699]
[1645885135616,1.71494003,91.039,90.941,45.40849314]
[1645885135912,1.71494003,91.039,90.942,24.5404]
[1645885136116,2.74678921,91.038,90.942,24.5404]
[1645885140115,2.74678921,91.038,90.943,110.0]
[1645885142016,2.74678921,91.038,90.942,24.5404]
[1645885142916,2.24678921,91.038,90.942,24.5404]
[1645885143316,2.24678921,91.038,90.943,110.0]
[1645885144116,2.24678921,91.038,90.942,24.5404]
[1645885149820,2.24678921,91.038,90.943,110.0]
[1645885152729,2.24678921,91.038,90.942,24.5404]
[1645885152931,110.0,91.035,90.942,24.5404]
[1645885153130,16.4993,91.01,90.942,24.5404]
[1645885153331,5.66973945,91.009,90.942,24.5404]
[1645885153534,4.20871265,91.009,90.942,24.5404]
[1645885154132,4.20871265,91.009,90.941,45.40849314]
[1645885154530,2.74678921,91.024,90.941,45.40849314]
[1645885154730,2.74678921,91.024,90.951,110.0]
[1645885154933,2.74678921,91.024,90.952,2.86443976]
[1645885155134,1.6548215,91.068,90.952,2.86443976]
[1645885155332,4.394,91.067,90.953,22.5454]
[1645885155531,1.48871078,91.043,90.953,22.5454]
[1645885155731,75.89871078,91.043,90.927,2.74678921]
[1645885155930,26.71543819,91.042,90.93,15.85]
[1645885156130,1.62384219,91.041,90.93,15.85]
[1645885156331,1.62384219,91.041,90.94,15.85]
[1645885156332,4.396,91.04,90.94,15.85]
[1645885156531,2.24678921,91.04,90.94,15.85]
[1645885156836,2.74678921,91.039,90.94,15.85]
[1645885157032,1.74678921,91.039,90.94,15.85]
[1645885157434,1.74678921,91.039,90.94,125.85]
[1645885157637,1.74678921,91.039,90.942,110.0]
[1645885157834,1.74678921,91.039,90.943,2.25663614]
[1645885158034,1.74678921,91.039,90.942,110.0]
[1645885158234,1.74678921,91.039,90.943,23.5039]
[1645885158454,23.1067,91.042,90.951,110.0]
[1645885158652,23.1067,91.042,90.961,110.0]
[1645885158853,23.1067,91.042,90.962,42.14112508]
[1645885159053,23.1067,91.042,90.962,48.22112508]
[1645885159453,23.1067,91.042,90.97,16.4888]
[1645885159653,23.1067,91.042,90.97,32.3388]
[1645885159853,23.1067,91.042,90.97,142.3388]
[1645885160257,23.1067,91.042,90.97,32.3388]
[1645885160454,23.1067,91.042,90.97,15.85]
[1645885160655,22.6067,91.042,90.97,15.85]
[1645885162259,22.6067,91.042,90.962,42.14112508]
[1645885162260,4.29692087,91.041,90.962,42.14112508]
[1645885162461,8.69092087,91.041,90.932,23.9023]
[1645885162662,2.74678921,91.04,90.932,23.9023]
[1645885162862,4.394,91.039,90.932,23.9023]
[1645885163260,1.84253266,91.038,90.932,23.9023]
[1645885163460,4.396,91.037,90.941,47.74167813]
[1645885163661,7.22,91.037,90.941,47.74167813]
[1645885163863,16.4975,91.01,90.941,47.74167813]
[1645885164063,17.14104041,91.009,90.941,47.74167813]
[1645885164261,1.38804169,91.008,90.941,47.74167813]
[1645885164462,70.0348309,91.008,90.897,4.396]
[1645885164661,65.9,91.0,90.9,15.85]
[1645885164861,110.0,90.997,90.897,47.5592]
[1645885165061,1.69784488,90.992,90.897,47.5592]
[1645885165464,151.65934137,90.991,90.898,57.56804827]
[1645885165665,1.40815054,90.99,90.898,57.56804827]
[1645885165962,17.14104041,90.969,90.899,110.0]
[1645885166363,17.14104041,90.969,90.898,57.56804827]
[1645885166563,17.14104041,90.969,90.899,110.0]
[1645885166761,17.14104041,90.969,90.898,57.56804827]
[1645885168560,16.64104041,90.969,90.898,57.56804827]
[1645885168860,16.64104041,90.969,90.899,110.0]
[1645885169060,16.5033,90.98,90.9,125.85]
[1645885169262,3.23367342,90.99,90.901,2.69522601]
[1645885169263,1.82552288,90.99,90.901,2.69522601]
[1645885169462,22.5781,91.008,90.901,2.69522601]
[1645885169663,22.5781,91.008,90.901,5.44201522]
[1645885169961,22.5781,91.008,90.903,2.96810028]
[1645885170363,1.55495753,91.036,90.905,110.0]
[1645885170561,1.55495753,91.036,90.921,110.0]
[1645885170766,1.55495753,91.036,90.93,125.85]
[1645885171263,1.86999708,91.034,90.932,110.0]
[1645885171464,1.86999708,91.034,90.934,110.0]
[1645885172063,1.86999708,91.034,90.935,2.99468548]
[1645885172264,52.06597639,91.035,90.94,142.3444]
[1645885172463,52.92198471,91.035,90.94,142.3444]
[1645885172666,51.56597639,91.035,90.94,142.3444]
[1645885172865,51.56597639,91.035,90.941,3.06492738]
[1645885174064,51.56597639,91.035,90.951,58.06804827]
[1645885174265,53.24796661,91.035,90.96,15.85]
[1645885176766,52.74796661,91.035,90.96,15.85]
[1645885177767,23.2676,91.036,90.961,110.0]
[1645885177968,1.49043016,91.067,90.962,2.26566282]
[1645885178167,1.49043016,91.067,90.964,110.0]
[1645885178369,1.49043016,91.067,90.965,2.80772156]
[1645885178567,4.23721937,91.067,90.98,15.85]
[1645885178767,45.07496804,91.066,90.981,30.98156995]
[1645885178968,16.4886,91.06,90.981,30.98156995]
[1645885179368,26.37562269,91.059,90.981,30.98156995]
[1645885179570,1.38756612,91.058,90.981,30.98156995]
[1645885179767,4.394,91.057,90.981,30.98156995]
[1645885179967,38.99577411,91.057,90.981,30.98156995]
[1645885180168,16.03842801,91.056,90.981,30.98156995]
[1645885180369,6.02498614,91.055,90.981,30.98156995]
[1645885180570,16.4929,91.05,90.981,30.98156995]
[1645885180770,13.98402608,91.049,90.981,30.98156995]
[1645885180973,1.47967461,91.048,90.981,30.98156995]
[1645885181371,2.80519749,91.048,90.981,30.98156995]
[1645885181571,1.84253266,91.047,90.981,30.98156995]
[1645885182072,1.84253266,91.047,90.963,47.6584]
[1645885182274,21.85676544,91.046,90.96,15.85]
[1645885182472,71.72738406,91.045,90.94,15.85]
[1645885182672,65.9,91.043,90.933,47.9481]
[1645885182872,5.99387028,91.042,90.933,47.9481]
[1645885183073,29.6761586,91.042,90.934,2.43046001]
[1645885183275,1.4786468,91.041,90.934,59.93559695]
[1645885183475,5.91905701,91.04,90.934,59.93559695]
[1645885183672,43.96201222,91.04,90.934,59.93559695]
[1645885183873,15.76139193,91.039,90.934,59.93559695]
[1645885184074,1.74821698,91.038,90.934,59.93559695]
[1645885184273,26.35177163,91.038,90.934,59.93559695]
[1645885184474,4.3828569,91.037,90.934,59.93559695]
[1645885184694,1.38703095,91.036,90.934,59.93559695]
[1645885184874,16.4958,91.02,90.934,59.93559695]
[1645885185075,12.22541374,91.019,90.934,59.93559695]
[1645885185675,35.46011374,91.019,90.934,59.93559695]
[1645885186078,16.4976,91.01,90.934,59.93559695]
[1645885186276,16.4976,91.01,90.934,57.50513694]
[1645885187678,16.4976,91.01,90.935,2.65221684]
[1645885188079,35.46011374,91.019,90.935,2.65221684]
[1645885188879,35.46011374,91.019,90.936,2.57901465]
[1645885189081,35.46011374,91.019,90.942,2.93313226]
[1645885189280,23.2347,91.019,90.942,2.93313226]
[1645885189680,1.56704986,91.049,90.951,110.0]